[Event "33rd Croatian Junior League 2024"]
[Site "Novalja"]
[Date "2024.04.03"]
[Round "3.5"]
[White "Vucenovic, Damian"]
[Black "Grgantov, Marin"]
[Result "1-0"]
[ECO "B31"]
[WhiteElo "2145"]
[BlackElo "2142"]
[Annotator "RC"]
[PlyCount "79"]
[EventDate "2024.03.28"]
[EventType "team-tourn"]
[EventCountry "CRO"]
[SourceTitle "playchess.com"]
[Source "ChessBase"]
[SourceQuality "1"]
[TimeControl "5400+30"]

1. e4 {[%emt 0:00:04]} c5 {[%emt 0:00:08]} 2. Nf3 {[%emt 0:01:03]} Nc6 {[%emt 0:00:06]} 3. Bb5 {[%emt 0:01:40]} g6 {[%emt 0:00:21]} 4. c3 {[%emt 0:02:07]} Nf6 {[%emt 0:02:10]} 5. Qe2 {[%emt 0:02:01]} Bg7 {[%emt 0:00:51]} 6. d4 {[%emt 0:02:02]} cxd4 {[%emt 0:01:52]} 7. cxd4 {[%emt 0:00:34]} a6 {[%emt 0:02:11]} 8. Ba4 {[%emt 0:04:47]} b5 {[%emt 0:03:46]} 9. Bb3 {[%emt 0:06:05]} Na5 {[%emt 0:02:23]} 10. Bc2 {[%emt 0:01:18]} Bb7 {[%emt 0:01:09]} 11. Nbd2 {[%emt 0:11:34]} O-O {[%emt 0:10:12]} 12. O-O {[%emt 0:03:15]} Qb6 {[%emt 0:20:19]} 13. a3 {[%emt 0:09:45]} Rfc8 {[%emt 0:00:38]} 14. Bd3 {[%emt 0:01:56]} Nh5 {[%emt 0:05:58]} 15. Qe3 {[%emt 0:15:30]} Nc4 {[%emt 0:03:16]} 16. Nxc4 {[%emt 0:04:18]} bxc4 {[%emt 0:00:01]} 17. Be2 {[%emt 0:01:03]} Qc6 {[%emt 0:07:57]} 18. Nd2 {[%emt 0:09:45]} c3 {[%emt 0:00:37]} 19. bxc3 {[%emt 0:01:10]} Qxc3 {[%emt 0:00:07]} 20. Rb1 {[%emt 0:05:24]} Ra7 {[%emt 0:08:52]} 21. Rxb7 {[%emt 0:06:58]} Rxb7 {[%emt 0:03:18]} 22. Bxa6 {[%emt 0:00:04]} Rbc7 {[%emt 0:03:56]} 23. Bxc8 {[%emt 0:02:22]} Rxc8 {[%emt 0:00:06]} 24. e5 {[%emt 0:01:57]} Qxe3 {[%emt 0:03:26]} 25. fxe3 {[%emt 0:00:01]} Bh6 {[%emt 0:00:09]} 26. Kf2 {[%emt 0:01:23]} Ng7 {[%emt 0:00:06]} 27. g4 {[%emt 0:00:45]} Rc3 {[%emt 0:04:51]} 28. Ne4 {[%emt 0:01:19]} Rc2+ {[%emt 0:00:52]} 29. Bd2 {[%emt 0:01:45]} Ne6 {[%emt 0:00:17]} 30. Ke2 {[%emt 0:00:57]} Ra2 {[%emt 0:00:33]} 31. d5 {[%emt 0:00:09]} Nf8 {[%emt 0:04:20]} 32. d6 {[%emt 0:00:59]} exd6 {[%emt 0:01:47]} 33. exd6 {[%emt 0:01:39]} Bg7 {[%emt 0:00:47]} 34. Rc1 {[%emt 0:01:17]} Rxa3 {[%emt 0:00:47]} 35. g5 {[%emt 0:00:03]} Ra6 {[%emt 0:01:09]} 36. Rc8 {[%emt 0:00:29]} Be5 {[%emt 0:03:37]} 37. Kf3 {[%emt 0:01:32]} Kg7 {[%emt 0:02:15]} 38. Rd8 {[%emt 0:00:00]} Ra7 {[%emt 0:01:24]} 39. Nf6 {[%emt 0:00:00]} Ne6 {[%emt 0:00:38]} 40. Rg8# {[%emt 0:00:00]} 1-0

[Event "33rd Croatian Junior League 2024"]
[Site "Novalja"]
[Date "2024.04.03"]
[Round "3.6"]
[White "Begic, Domagoj"]
[Black "Dumancic, Simun"]
[Result "1-0"]
[ECO "B20"]
[WhiteElo "2069"]
[BlackElo "2027"]
[Annotator "NA RC"]
[PlyCount "53"]
[EventDate "2024.03.28"]
[EventType "team-tourn"]
[EventCountry "CRO"]
[SourceTitle "playchess.com"]
[Source "ChessBase"]
[SourceQuality "1"]
[TimeControl "5400+30"]

1. e4 {[%emt 0:00:02]} c5 {[%emt 0:00:57]} 2. b3 {[%emt 0:00:05]} d5 {[%emt 0:05:01]} 3. exd5 {[%emt 0:00:13]} Qxd5 {[%emt 0:00:09]} 4. Nc3 {[%emt 0:00:19]} Qd8 {[%emt 0:00:30]} 5. Bb2 {[%emt 0:00:40]} Nf6 {[%emt 0:01:10]} 6. Nf3 {[%emt 0:00:29]} Nc6 {[%emt 0:02:12]} 7. Bb5 {[%emt 0:00:16]} Bd7 {[%emt 0:00:42]} 8. Qe2 {[%emt 0:03:59]} e6 {[%emt 0:03:45]} 9. Bxc6 {[%emt 0:01:48]} Bxc6 {[%emt 0:00:16]} 10. Ne5 {[%emt 0:00:22]} Qc7 {[%emt 0:01:52]} 11. O-O-O {[%emt 0:08:59]} a6 {[%emt 0:07:24]} 12. f4 {[%emt 0:00:14]} Bd6 {[%emt 0:07:36]} 13. Rhf1 $11 {[%emt 0:01:03]} O-O {[%emt 0:10:26]} 14. g4 {[%emt 0:00:19]} Nd5 {[%emt 0:06:04]} 15. Nxd5 {[%emt 0:15:08]} Bxd5 {[%emt 0:00:25]} 16. c4 {[%emt 0:00:54]} Bc6 {[%emt 0:00:32]} 17. g5 {[%emt 0:00:34]} Bxe5 {[%emt 0:08:28]} 18. Bxe5 {[%emt 0:00:41]} Qe7 {[%emt 0:01:51]} 19. Bc3 {[%emt 0:00:31]} Qc7 {[%emt 0:01:31]} 20. Qe3 {[%emt 0:00:31]} b6 {[%emt 0:01:21]} 21. h4 {[%emt 0:00:27]} Bg2 {[%emt 0:25:30]} 22. Rg1 {[%emt 0:00:15]} Qc6 {[%emt 0:01:02]} 23. Rde1 {[%emt 0:01:54]} Rae8 {[%emt 0:02:23]} 24. Qe5 {[%emt 0:01:29]} f6 {[%emt 0:00:06]} 25. gxf6 {[%emt 0:00:03]} Rxf6 {[%emt 0:02:31]} 26. h5 {[%emt 0:00:24]} h6 {[%emt 0:08:54]} 27. Re3 {[%emt 0:00:04]} 1-0

[Event "33rd Croatian Junior League 2024"]
[Site "Novalja"]
[Date "2024.04.03"]
[Round "3.7"]
[White "Sagovac, Kristijan"]
[Black "Poljak, Stipe"]
[Result "1-0"]
[ECO "B92"]
[WhiteElo "2030"]
[BlackElo "1979"]
[Annotator "NA RC"]
[PlyCount "81"]
[EventDate "2024.03.28"]
[EventType "team-tourn"]
[EventCountry "CRO"]
[SourceTitle "playchess.com"]
[Source "ChessBase"]
[SourceQuality "1"]
[TimeControl "5400+30"]

1. e4 {[%emt 0:00:03]} c5 {[%emt 0:00:10]} 2. Nf3 {[%emt 0:00:19]} d6 {[%emt 0:00:07]} 3. d4 {[%emt 0:00:08]} cxd4 {[%emt 0:00:03]} 4. Nxd4 {[%emt 0:00:03]} Nf6 {[%emt 0:00:09]} 5. Nc3 {[%emt 0:00:03]} a6 {[%emt 0:00:05]} 6. Be2 {[%emt 0:00:19]} e5 {[%emt 0:00:07]} 7. Nb3 {[%emt 0:00:05]} Be7 {[%emt 0:00:18]} 8. O-O {[%emt 0:00:15]} O-O {[%emt 0:00:46]} 9. Be3 {[%emt 0:00:48]} Be6 {[%emt 0:00:31]} 10. Qd3 {[%emt 0:00:16]} Nbd7 {[%emt 0:03:46]} 11. Rfd1 {[%emt 0:01:15]} Rc8 {[%emt 0:01:21]} 12. a4 {[%emt 0:03:27]} Qc7 {[%emt 0:15:44]} 13. a5 {[%emt 0:05:14]} Rfd8 {[%emt 0:11:49]} 14. Bf3 $11 {[%emt 0:02:43]} Bf8 {[%emt 0:13:44]} 15. g3 {[%emt 0:06:14]} Bc4 {[%emt 0:14:23]} 16. Qd2 {[%emt 0:00:05]} Be6 {[%emt 0:07:14]} 17. Qe1 {[%emt 0:05:26]} g6 {[%emt 0:07:04]} 18. Bg2 {[%emt 0:01:32]} Bg7 {[%emt 0:02:10]} 19. h3 {[%emt 0:02:44]} Qb8 {[%emt 0:07:58]} 20. Nc1 {[%emt 0:07:17]} Nc5 {[%emt 0:04:15]} 21. Ra3 {[%emt 0:10:35]} Bd7 {[%emt 0:03:49]} 22. b4 {[%emt 0:01:48]} Ne6 {[%emt 0:00:13]} 23. Bb6 {[%emt 0:00:17]} Re8 {[%emt 0:00:40]} 24. Qd2 {[%emt 0:07:02]} Nd4 {[%emt 0:02:16]} 25. Kh2 {[%emt 0:04:17]} Rc4 {[%emt 0:01:24]} 26. Bxd4 {[%emt 0:08:50]} Rxd4 {[%emt 0:01:39]} 27. Nd3 {[%emt 0:00:18]} Bc6 {[%emt 0:00:56]} 28. f3 {[%emt 0:01:38]} d5 {[%emt 0:00:59]} 29. Ne2 {[%emt 0:03:15]} dxe4 {[%emt 0:00:41]} 30. Nxd4 {[%emt 0:00:05]} exd4 {[%emt 0:00:10]} 31. fxe4 {[%emt 0:00:16]} Nxe4 {[%emt 0:00:19]} 32. Qf4 {[%emt 0:02:45]} Qd8 {[%emt 0:01:03]} 33. Bxe4 {[%emt 0:10:52]} Rxe4 {[%emt 0:00:19]} 34. Qf2 {[%emt 0:00:16]} Re3 {[%emt 0:00:40]} 35. Raa1 {[%emt 0:01:34]} Qd5 {[%emt 0:00:33]} 36. Rf1 {[%emt 0:05:28]} Bf8 {[%emt 0:00:30]} 37. Nf4 {[%emt 0:06:45]} Qe4 {[%emt 0:00:28]} 38. Nh5 {[%emt 0:01:23]} Re2 {[%emt 0:00:22]} 39. Nf6+ {[%emt 0:00:06]} Kg7 {[%emt 0:00:42]} 40. Nxe4 {[%emt 0:00:05]} Rxf2+ {[%emt 0:00:28]} 41. Nxf2 {[%emt 0:00:06]} 1-0

[Event "33rd Croatian Junior League 2024"]
[Site "Novalja"]
[Date "2024.04.03"]
[Round "3.8"]
[White "Pehar, Borna"]
[Black "Martic, Filip"]
[Result "*"]
[ECO "B36"]
[WhiteElo "1988"]
[BlackElo "1897"]
[Annotator "NA RC"]
[PlyCount "35"]
[EventDate "2024.03.28"]
[EventType "team-tourn"]
[EventCountry "CRO"]
[SourceTitle "playchess.com"]
[Source "ChessBase"]
[SourceQuality "1"]
[TimeControl "5400+30"]

1. e4 {[%emt 0:00:04]} c5 {[%emt 0:00:13]} 2. Nf3 {[%emt 1:31:26]} g6 {[%emt 0:00:04]} 3. d4 {[%emt 0:00:06]} cxd4 {[%emt 1:31:43]} 4. Nxd4 {[%emt 0:00:05]} Nc6 {[%emt 1:32:08]} 5. c4 {[%emt 0:00:05]} Nf6 {[%emt 0:00:15]} 6. Nc3 {[%emt 0:00:11]} d6 {[%emt 0:00:24]} 7. Be2 {[%emt 0:00:15]} Nxd4 {[%emt 0:00:06]} 8. Qxd4 {[%emt 0:00:07]} Bg7 {[%emt 0:00:06]} 9. Be3 {[%emt 0:00:12]} O-O {[%emt 0:00:17]} 10. Qd2 {[%emt 0:00:04]} a5 {[%emt 1:33:50]} 11. Rd1 {[%emt 0:00:51]} Bd7 $14 {[%emt 0:01:25]} 12. O-O {[%emt 0:06:06]} Bc6 {[%emt 0:03:32]} 13. f3 {[%emt 0:04:49]} Nd7 {[%emt 0:05:03]} 14. b3 {[%emt 0:01:46]} Nc5 {[%emt 0:01:31]} 15. Bd4 {[%emt 0:04:14]} Qb6 {[%emt 0:10:02]} 16. Kh1 {[%emt 0:04:37]} Rfc8 {[%emt 0:01:00]} 17. Be5 {[%emt 1:15:21]} Bf6 18. Bxf6 {[%emt 0:00:00]} *

[Event "33rd Croatian Junior League 2024"]
[Site "Novalja"]
[Date "2024.04.03"]
[Round "3.8"]
[White "Pehar, Borna"]
[Black "Martic, Filip"]
[Result "1-0"]
[ECO "B36"]
[WhiteElo "1988"]
[BlackElo "1897"]
[Annotator "COMBH"]
[PlyCount "251"]
[EventDate "2024.03.28"]
[EventType "team-tourn"]
[EventCountry "CRO"]
[SourceTitle "playchess.com"]
[Source "ChessBase"]
[SourceQuality "1"]
[TimeControl "5400+30"]

1. e4 {[%emt 0:00:04]} c5 {[%emt 0:00:13]} 2. Nf3 {[%emt 0:00:07]} g6 {[%emt 0:00:04]} 3. d4 {[%emt 0:00:06]} cxd4 {[%emt 0:00:05]} 4. Nxd4 {[%emt 0:00:05]} Nc6 {[%emt 0:00:10]} 5. c4 {[%emt 0:00:05]} Nf6 {[%emt 0:00:15]} 6. Nc3 {[%emt 0:00:11]} d6 {[%emt 0:00:24]} 7. Be2 {[%emt 0:00:15]} Nxd4 {[%emt 0:00:06]} 8. Qxd4 {[%emt 0:00:07]} Bg7 {[%emt 0:00:06]} 9. Be3 {[%emt 0:00:12]} O-O {[%emt 0:00:17]} 10. Qd2 {[%emt 0:00:04]} a5 {[%emt 0:00:06]} 11. Rd1 {[%emt 0:00:51]} Bd7 {[%emt 0:01:25]} 12. O-O {[%emt 0:06:06]} Bc6 {[%emt 0:03:32]} 13. f3 {[%emt 0:04:49]} Nd7 {[%emt 0:05:03]} 14. b3 {[%emt 0:01:46]} Nc5 {[%emt 0:01:31]} 15. Bd4 {[%emt 0:04:14]} Qb6 {[%emt 0:10:02]} 16. Kh1 {[%emt 0:04:37]} Rfc8 {[%emt 0:01:00]} 17. Bxg7 {[%emt 0:03:15]} Kxg7 {[%emt 0:00:30]} 18. Qd4+ {[%emt 0:00:04]} Kg8 {[%emt 0:00:00]} 19. h4 {[%emt 0:02:50]} Nd7 {[%emt 0:01:34]} 20. f4 {[%emt 0:03:51]} Qxd4 {[%emt 0:11:49]} 21. Rxd4 {[%emt 0:00:05]} Kg7 {[%emt 0:00:32]} 22. Bg4 {[%emt 0:00:48]} Rd8 {[%emt 1:02:46]} 23. Rfd1 {[%emt 0:04:15]} h5 {[%emt 0:00:00]} 24. Bxd7 {[%emt 0:00:56]} Rxd7 {[%emt 0:00:00]} 25. Kg1 {[%emt 0:03:29]} Rad8 {[%emt 0:00:00]} 26. g3 {[%emt 0:10:43]} e6 {[%emt 0:00:00]} 27. Kf2 {[%emt 0:01:44]} Kf8 {[%emt 0:00:00]} 28. Ke3 {[%emt 0:00:19]} Ke7 {[%emt 0:00:00]} 29. a3 {[%emt 0:16:02]} b6 {[%emt 0:00:00]} 30. e5 {[%emt 0:07:04]} f6 {[%emt 0:04:00]} 31. exf6+ {[%emt 0:07:19]} Kxf6 {[%emt 0:00:00]} 32. b4 {[%emt 0:01:22]} Ke7 {[%emt 0:00:00]} 33. b5 {[%emt 0:00:48]} Bg2 {[%emt 0:00:00]} 34. Na4 {[%emt 0:00:32]} Rb7 {[%emt 0:00:00]} 35. R1d2 {[%emt 0:01:51]} Bh3 {[%emt 0:00:00]} 36. Nc3 {[%emt 0:10:05]} Bf5 {[%emt 0:00:00]} 37. Ke2 {[%emt 0:00:34]} Bg4+ {[%emt 0:00:00]} 38. Ke1 {[%emt 0:00:13]} Rbd7 {[%emt 0:00:00]} 39. Na4 {[%emt 0:00:30]} Rb7 {[%emt 0:00:00]} 40. R2d3 {[%emt 0:01:34]} Bf5 {[%emt 0:00:00]} 41. Rd2 {[%emt 0:00:07]} Bg4 {[%emt 0:00:00]} 42. R2d3 {[%emt 0:02:05]} Bf5 {[%emt 0:00:00]} 43. Rc3 {[%emt 0:00:00]} Rdd7 {[%emt 0:01:07]} 44. Kd2 {[%emt 0:00:38]} Bg4 {[%emt 0:00:15]} 45. Re3 {[%emt 0:00:13]} Bf5 {[%emt 0:00:07]} 46. Kc3 {[%emt 0:00:24]} Rdc7 {[%emt 0:00:47]} 47. Rd2 {[%emt 0:02:06]} Rc8 {[%emt 0:00:58]} 48. Kb3 {[%emt 0:00:35]} Rd8 {[%emt 0:00:31]} 49. Nc3 {[%emt 0:00:07]} Kf6 {[%emt 0:00:35]} 50. Ne2 {[%emt 0:00:57]} Rbd7 {[%emt 0:01:36]} 51. Nc3 {[%emt 0:01:41]} d5 {[%emt 0:02:42]} 52. cxd5 exd5 {[%emt 0:00:01]} 53. Rd4 {[%emt 0:01:30]} Rd6 {[%emt 0:00:36]} 54. Re5 {[%emt 0:00:43]} Be6 {[%emt 0:00:01]} 55. Kc2 {[%emt 0:00:42]} Bf5+ {[%emt 0:00:07]} 56. Kd2 {[%emt 0:02:50]} Be6 {[%emt 0:00:15]} 57. Ke3 {[%emt 0:00:00]} R8d7 {[%emt 0:00:29]} 58. Kd3 {[%emt 0:00:00]} Bf5+ {[%emt 0:00:19]} 59. Ke3 {[%emt 0:00:00]} Be6 {[%emt 0:00:05]} 60. Kd2 {[%emt 0:00:33]} Rd8 {[%emt 0:00:08]} 61. Re1 {[%emt 0:00:09]} Bg4 {[%emt 0:00:54]} 62. Kc1 {[%emt 0:00:52]} Rc8 {[%emt 0:00:50]} 63. Kb2 {[%emt 0:00:05]} Rcd8 {[%emt 0:00:14]} 64. Re3 {[%emt 0:00:57]} R6d7 {[%emt 0:01:27]} 65. Red3 {[%emt 0:00:21]} Be6 {[%emt 0:00:01]} 66. Rd2 {[%emt 0:00:22]} Kf7 {[%emt 0:01:31]} 67. Nd1 {[%emt 0:00:29]} Kf6 {[%emt 0:00:43]} 68. Ne3 {[%emt 0:00:14]} Kf7 {[%emt 0:00:33]} 69. Rc2 {[%emt 0:00:13]} Rd6 {[%emt 0:00:29]} 70. Rc3 {[%emt 0:01:18]} Kf6 {[%emt 0:00:57]} 71. Rc7 {[%emt 0:00:41]} Bh3 {[%emt 0:01:29]} 72. Rc6 {[%emt 0:00:58]} Ke6 {[%emt 0:00:18]} 73. Rc1 {[%emt 0:00:39]} Kf6 {[%emt 0:00:25]} 74. Rcd1 {[%emt 0:01:09]} Ke6 {[%emt 0:00:19]} 75. Rh1 {[%emt 0:00:00]} Bf5 {[%emt 0:00:09]} 76. Re1 {[%emt 0:00:00]} Kf6 {[%emt 0:00:50]} 77. Red1 {[%emt 0:00:00]} Ke6 {[%emt 0:00:11]} 78. Rc1 {[%emt 0:00:46]} Kf6 {[%emt 0:00:57]} 79. Rc7 {[%emt 0:00:44]} Ke6 {[%emt 0:00:24]} 80. Kc3 {[%emt 0:00:32]} Kf6 {[%emt 0:00:08]} 81. Kd2 {[%emt 0:00:40]} Ke6 {[%emt 0:00:11]} 82. Ke2 {[%emt 0:00:33]} Kf6 {[%emt 0:00:35]} 83. Kd2 {[%emt 0:00:31]} Ke6 {[%emt 0:00:05]} 84. Nd1 {[%emt 0:00:18]} R8d7 {[%emt 0:00:23]} 85. Rc8 {[%emt 0:00:31]} Rd8 {[%emt 0:00:04]} 86. Rc7 {[%emt 0:00:10]} R8d7 {[%emt 0:00:03]} 87. Rc3 {[%emt 0:00:04]} Kf6 {[%emt 0:00:08]} 88. Re3 {[%emt 0:00:05]} Re7 {[%emt 0:00:31]} 89. Rc3 {[%emt 0:00:15]} Red7 {[%emt 0:00:05]} 90. Ne3 {[%emt 0:00:03]} Ke6 {[%emt 0:00:10]} 91. Rc1 {[%emt 0:01:06]} Rd8 {[%emt 0:00:13]} 92. Rc6 {[%emt 0:00:17]} R8d7 {[%emt 0:00:16]} 93. Rc8 {[%emt 0:01:25]} Be4 {[%emt 0:00:53]} 94. Re8+ {[%emt 0:00:01]} Kf7 {[%emt 0:00:10]} 95. Re5 {[%emt 0:00:03]} Kf6 {[%emt 0:00:11]} 96. g4 {[%emt 0:00:27]} Bf3 {[%emt 0:02:00]} 97. gxh5 {[%emt 0:01:19]} gxh5 {[%emt 0:00:12]} 98. Rg5 {[%emt 0:00:37]} Rd8 {[%emt 0:01:00]} 99. Ke1 {[%emt 0:00:44]} Ke6 {[%emt 0:00:02]} 100. Kf2 {[%emt 0:00:15]} Be4 {[%emt 0:00:32]} 101. Re5+ {[%emt 0:00:20]} Kf6 {[%emt 0:01:30]} 102. Rxh5 {[%emt 0:00:04]} Ke6 {[%emt 0:01:34]} 103. Re5+ {[%emt 0:00:10]} Kf7 {[%emt 0:00:09]} 104. Rg5 {[%emt 0:00:24]} Ke6 {[%emt 0:00:32]} 105. Re5+ {[%emt 0:00:26]} Kf7 {[%emt 0:00:06]} 106. Kg3 {[%emt 0:00:07]} Rg8+ {[%emt 0:00:24]} 107. Rg5 {[%emt 0:00:31]} Rgd8 {[%emt 0:00:21]} 108. Kg4 {[%emt 0:00:58]} Kf6 {[%emt 0:02:04]} 109. h5 {[%emt 0:00:26]} R6d7 {[%emt 0:00:52]} 110. h6 {[%emt 0:00:56]} Rd6 {[%emt 0:00:11]} 111. h7 {[%emt 0:01:06]} Bxh7 {[%emt 0:00:28]} 112. Rgxd5 {[%emt 0:00:11]} Ke6 {[%emt 0:00:45]} 113. Re5+ {[%emt 0:00:28]} Kf7 {[%emt 0:00:12]} 114. Rxd6 {[%emt 0:00:42]} Rxd6 {[%emt 0:00:01]} 115. f5 {[%emt 0:01:06]} Kf6 {[%emt 0:00:36]} 116. Re4 {[%emt 0:00:40]} Bg8 {[%emt 0:00:30]} 117. Kf4 {[%emt 0:00:21]} Rd3 {[%emt 0:00:38]} 118. Ng4+ {[%emt 0:00:03]} Kg7 {[%emt 0:00:12]} 119. Re7+ {[%emt 0:00:18]} Kf8 {[%emt 0:00:08]} 120. Rb7 {[%emt 0:00:25]} Bc4 {[%emt 0:00:22]} 121. Rxb6 {[%emt 0:00:25]} Rxa3 {[%emt 0:00:04]} 122. Ne5 {[%emt 0:00:18]} Bd5 {[%emt 0:00:20]} 123. Rd6 {[%emt 0:00:19]} Ra4+ {[%emt 0:00:21]} 124. Kg5 {[%emt 0:00:06]} Bb3 {[%emt 0:00:31]} 125. Kf6 {[%emt 0:00:06]} Ke8 {[%emt 0:00:11]} 126. Nc6 {[%emt 0:00:10]} 1-0

[Event "33rd Croatian Junior League 2024"]
[Site "Novalja"]
[Date "2024.04.03"]
[Round "3.9"]
[White "Sundac, Ivano"]
[Black "Gal, Andrej"]
[Result "0-1"]
[ECO "B22"]
[WhiteElo "2066"]
[BlackElo "2274"]
[Annotator "RC"]
[PlyCount "82"]
[EventDate "2024.03.28"]
[EventType "team-tourn"]
[EventCountry "CRO"]
[SourceTitle "playchess.com"]
[Source "ChessBase"]
[SourceQuality "1"]
[TimeControl "5400+30"]

1. e4 {[%emt 0:00:11]} c5 {[%emt 0:00:07]} 2. c3 {[%emt 0:00:05]} Nf6 {[%emt 0:00:49]} 3. e5 {[%emt 0:00:11]} Nd5 {[%emt 0:00:04]} 4. d4 {[%emt 0:00:05]} cxd4 {[%emt 0:00:11]} 5. Nf3 {[%emt 0:00:06]} Nc6 {[%emt 0:01:33]} 6. cxd4 {[%emt 0:00:09]} d6 {[%emt 0:00:11]} 7. Bc4 {[%emt 0:00:29]} e6 {[%emt 0:00:04]} 8. O-O {[%emt 0:00:29]} Be7 {[%emt 0:00:06]} 9. Qe2 {[%emt 0:01:07]} O-O {[%emt 0:00:26]} 10. Nc3 {[%emt 0:01:49]} Nxc3 {[%emt 0:01:11]} 11. bxc3 {[%emt 0:00:05]} dxe5 {[%emt 0:00:02]} 12. Nxe5 {[%emt 0:00:18]} Nxe5 {[%emt 0:01:18]} 13. Qxe5 {[%emt 0:00:28]} Bd7 {[%emt 0:02:58]} 14. Bd3 {[%emt 0:05:54]} Bc6 {[%emt 0:00:39]} 15. Bb2 {[%emt 0:01:53]} Bf6 {[%emt 0:01:30]} 16. Qe2 {[%emt 0:01:17]} Qd5 {[%emt 0:04:36]} 17. f3 {[%emt 0:00:22]} Rac8 {[%emt 0:02:55]} 18. Rfd1 {[%emt 0:11:00]} Rfd8 {[%emt 0:07:42]} 19. Be4 {[%emt 0:08:38]} Qd7 {[%emt 0:00:29]} 20. Bxc6 {[%emt 0:08:33]} Qxc6 {[%emt 0:00:09]} 21. Qe4 {[%emt 0:01:46]} Qa6 {[%emt 0:02:27]} 22. g3 {[%emt 0:09:24]} h5 {[%emt 0:04:38]} 23. Kg2 {[%emt 0:03:45]} Rd5 {[%emt 0:03:05]} 24. Rd2 {[%emt 0:02:12]} b5 {[%emt 0:04:12]} 25. Qe2 {[%emt 0:05:43]} Qc6 {[%emt 0:03:15]} 26. Rad1 {[%emt 0:04:50]} Rcd8 {[%emt 0:02:20]} 27. Ba1 {[%emt 0:06:15]} h4 {[%emt 0:01:11]} 28. Qe4 {[%emt 0:01:38]} g6 {[%emt 0:02:28]} 29. Bb2 {[%emt 0:03:07]} Kg7 {[%emt 0:00:48]} 30. Rc2 {[%emt 0:02:02]} Qa6 {[%emt 0:02:06]} 31. Re1 {[%emt 0:01:04]} hxg3 {[%emt 0:03:42]} 32. hxg3 {[%emt 0:00:16]} Rh8 {[%emt 0:00:18]} 33. g4 {[%emt 0:01:46]} Rh4 {[%emt 0:06:31]} 34. Bc1 {[%emt 0:00:25]} b4 {[%emt 0:01:27]} 35. Be3 {[%emt 0:03:08]} bxc3 {[%emt 0:01:50]} 36. Bf2 {[%emt 0:00:21]} Rh8 {[%emt 0:00:49]} 37. Rxc3 {[%emt 0:01:36]} Qxa2 {[%emt 0:01:33]} 38. Rc2 {[%emt 0:00:22]} Qa5 {[%emt 0:00:54]} 39. Rc5 {[%emt 0:00:48]} Qd2 {[%emt 0:01:09]} 40. Rxd5 {[%emt 0:01:33]} exd5 {[%emt 0:00:39]} 41. Re2 {[%emt 0:00:49]} Qh6 {[%emt 0:00:55]} 0-1

[Event "33rd Croatian Junior League 2024"]
[Site "Novalja"]
[Date "2024.04.03"]
[Round "3.10"]
[White "Franc, Borna"]
[Black "Tomljanovic, Ivano"]
[Result "1-0"]
[ECO "B13"]
[WhiteElo "2221"]
[BlackElo "2013"]
[Annotator "RC"]
[PlyCount "59"]
[EventDate "2024.03.28"]
[EventType "team-tourn"]
[EventCountry "CRO"]
[SourceTitle "playchess.com"]
[Source "ChessBase"]
[SourceQuality "1"]
[TimeControl "5400+30"]

1. e4 {[%emt 0:00:01]} c6 {[%emt 0:00:27]} 2. d4 {[%emt 0:00:05]} d5 {[%emt 0:00:07]} 3. exd5 {[%emt 0:00:03]} cxd5 {[%emt 0:00:48]} 4. Nf3 {[%emt 0:00:03]} Nc6 {[%emt 0:00:22]} 5. Bd3 {[%emt 0:00:04]} Nf6 {[%emt 0:05:22]} 6. Bf4 {[%emt 0:01:11]} Qb6 {[%emt 0:04:24]} 7. b3 {[%emt 0:03:37]} Nb4 {[%emt 0:04:12]} 8. O-O {[%emt 0:01:39]} Nxd3 {[%emt 0:02:17]} 9. Qxd3 {[%emt 0:00:02]} e6 {[%emt 0:03:29]} 10. c4 {[%emt 0:00:54]} Be7 {[%emt 0:01:58]} 11. Nc3 {[%emt 0:00:07]} O-O {[%emt 0:01:05]} 12. Rfe1 {[%emt 0:01:33]} Bb4 {[%emt 0:05:16]} 13. Nd2 {[%emt 0:11:49]} Qa5 {[%emt 0:07:10]} 14. Rac1 {[%emt 0:04:39]} Bd7 {[%emt 0:07:25]} 15. h3 {[%emt 0:04:09]} Bc6 {[%emt 0:02:13]} 16. c5 {[%emt 0:14:10]} Rac8 {[%emt 0:04:24]} 17. Bd6 {[%emt 0:02:17]} Rfe8 {[%emt 0:00:23]} 18. Re3 {[%emt 0:09:51]} b6 {[%emt 0:05:12]} 19. Rg3 {[%emt 0:00:36]} Nd7 {[%emt 0:01:57]} 20. Qe3 {[%emt 0:00:58]} bxc5 {[%emt 0:04:54]} 21. Qh6 {[%emt 0:01:34]} g6 {[%emt 0:08:45]} 22. Nf3 {[%emt 0:00:12]} f6 {[%emt 0:14:04]} 23. Nh4 {[%emt 0:00:25]} g5 {[%emt 0:04:24]} 24. f4 {[%emt 0:00:10]} Bxc3 {[%emt 0:02:13]} 25. Rcxc3 {[%emt 0:00:15]} Qxc3 {[%emt 0:03:29]} 26. Rxc3 {[%emt 0:00:06]} gxh4 {[%emt 0:00:02]} 27. Bxc5 {[%emt 0:01:45]} a6 {[%emt 0:00:41]} 28. Qxh4 {[%emt 0:00:04]} Bb5 {[%emt 0:00:52]} 29. b4 {[%emt 0:00:22]} Nxc5 {[%emt 0:00:59]} 30. Rg3+ {[%emt 0:00:03]} 1-0

[Event "33rd Croatian Junior League 2024"]
[Site "Novalja"]
[Date "2024.04.03"]
[Round "3.11"]
[White "Ivancic, Ivan"]
[Black "Marfat, Ivan"]
[Result "1/2-1/2"]
[ECO "C80"]
[WhiteElo "1995"]
[BlackElo "1903"]
[Annotator "NA RC"]
[PlyCount "47"]
[EventDate "2024.03.28"]
[EventType "team-tourn"]
[EventCountry "CRO"]
[SourceTitle "playchess.com"]
[Source "ChessBase"]
[SourceQuality "1"]
[TimeControl "5400+30"]

1. e4 {[%emt 0:00:03]} e5 {[%emt 0:00:04]} 2. Nf3 {[%emt 0:00:12]} Nc6 {[%emt 0:00:04]} 3. Bb5 {[%emt 0:01:56]} Nf6 {[%emt 0:00:05]} 4. O-O {[%emt 0:01:45]} Nxe4 {[%emt 0:00:03]} 5. d4 {[%emt 0:00:35]} a6 {[%emt 0:00:03]} 6. Ba4 {[%emt 0:03:14]} b5 {[%emt 0:00:13]} 7. Bb3 {[%emt 0:00:10]} d5 {[%emt 0:00:02]} 8. dxe5 {[%emt 0:00:53]} Be6 {[%emt 0:00:03]} 9. Nbd2 {[%emt 0:03:39]} Nc5 {[%emt 0:00:07]} 10. c3 {[%emt 0:00:44]} d4 {[%emt 0:00:04]} 11. Bxe6 {[%emt 0:04:43]} Nxe6 {[%emt 0:00:05]} 12. cxd4 {[%emt 0:00:15]} Ncxd4 {[%emt 0:00:04]} 13. a4 {[%emt 0:02:08]} Bb4 {[%emt 0:00:19]} 14. axb5 {[%emt 0:01:15]} Nxb5 {[%emt 0:00:13]} 15. Qa4 {[%emt 0:00:37]} c5 {[%emt 0:03:04]} 16. Ne4 {[%emt 0:02:54]} O-O {[%emt 0:07:30]} 17. Rd1 $1 {[%emt 0:00:26]} Qb6 $11 {[%emt 0:15:25]} 18. Nd6 {[%emt 0:45:59]} Rfd8 {[%emt 0:22:41]} 19. Nc4 {[%emt 0:04:47]} Rxd1+ {[%emt 0:04:54]} 20. Qxd1 {[%emt 0:00:10]} Rd8 {[%emt 0:00:06]} 21. Qa4 {[%emt 0:01:57]} Qb7 {[%emt 0:06:46]} 22. Be3 {[%emt 0:08:32]} Rd5 {[%emt 0:17:57]} 23. h3 {[%emt 0:01:38]} Nec7 {[%emt 0:01:17]} 24. Rd1 {[%emt 0:03:52]} 1/2-1/2